Workbook

Sheet Despesa
A1: Data | B1: Valor | C1: Razão Social | D1: CNPJ/CPF | E1: Documento | F1: Numero | G1: Pagamento | H1: Verba | I1: ND | J1: Justificativa | K1: Nº | L1: RP-17 | M1: RP-18

Sheet Anexo
A47: ORDEM | C47: DOC. | E47: NUMERO | G47: CHEQUE | I47: VALOR
A49: Justificativa

Sheet Pagtos
A1: PRESTAÇÃO DE CONTAS
A2: RELAÇÃO DE DESPESAS
A4: Lar Batista de Crianças em Sumaré - Serviço de Acolhimento em Família Acolhedora | H4: TC Nº 29930/2023 - Maio a Junho
A5: Nº | B5: OR | C5: Credor | D5: CGC/CPF/RG | E5: ND | F5: CH/OB | G5: Data | H5: Tít. de Crédito | I5: Data de Emissão | J5: Valor Líquido
A6: 1 | B6: 1 | C6: RICARDO COSTA DOS SANTOS | D6: 12.298.967/0001-80 | E6: d) | F6: Transferência | G6: 2023-02-07 | H6: 154 | I6: 2023-02-07 | J6: 855
A7: 2 | B7: 1 | C7: LEANDRO RODRIGUES AZENHA - EPP | D7: 24.896.117/0001-63 | E7: c) | F7: Boleto | G7: 2023-02-09 | H7: 4750 | I7: 2023-02-09 | J7: 1475.78
A8: 3 | B8: 1 | C8: BORGES E BORGES MERCADO DE MOVEIS LTDA-ME | D8: 10.676.777/0001-24 | E8: h) | F8: Débito | G8: 2023-02-10 | H8: 351 | I8: 2023-02-10 | J8: 270
A9: 4 | B9: 1 | C9: MARLENE DO CARMO BARBOSA - ME | D9: 11.721.357/0001-85 | E9: c) | F9: Débito | G9: 2023-02-16 | H9: 27854 | I9: 2023-02-16 | J9: 137.89
A10: 5 | B10: 1 | C10: MARLENE DO CARMO BARBOSA - ME | D10: 11.721.357/0001-85 | E10: c) | F10: Débito | G10: 2023-02-16 | H10: 27856 | I10: 2023-02-16 | J10: 77.97
A11: 6 | B11: 1 | C11: KALUNGA SA | D11: 43.283.811/0224-71 | E11: c) | F11: Transferência | G11: 2023-02-16 | H11: 21819 | I11: 2023-02-16 | J11: 44.96
A12: 7 | B12: 1 | C12: BORGES E BORGES MERCADO DE MOVEIS LTDA-ME | D12: 10.676.777/0001-24 | E12: h) | F12: Débito | G12: 2023-02-16 | H12: 352 | I12: 2023-02-16 | J12: 300
A13: 8 | B13: 1 | C13: GABRIEL PINKE MATTOS | D13: 21.682.610/0001-92 | E13: b) | F13: Débito | G13: 2023-02-17 | H13: 471 | I13: 2023-02-17 | J13: 79
A14: 9 | B14: 1 | C14: AMERICANA EXTINTORES LTDA EPP | D14: 00.535.414/0001-15 | E14: d) | F14: Boleto | G14: 2023-02-22 | H14: 38998 | I14: 2023-02-22 | J14: 229
A15: 10 | B15: 1 | C15: KALUNGA SA | D15: 43.283.811/0224-71 | E15: h) | F15: Débito | G15: 2023-02-23 | H15: 22127 | I15: 2023-02-23 | J15: 2299.91
A16: 11 | B16: 1 | C16: CANADINHA S COM DE TINTAS EIRELLI EPP | D16: 17.034.494/0001-28 | E16: c) | F16: Boleto | G16: 2023-02-23 | H16: 3395 | I16: 2023-02-23 | J16: 532.13
A17: 12 | B17: 1 | C17: SILVIA DE OLIVEIRA GODOY DE CASTRO | D17: 024.749.418-60 | E17: e) | F17: Transferência | G17: 2023-02-27 | H17: Recibo | I17: 2023-02-27 | J17: 509.19
A18: 13 | B18: 1 | C18: CANADINHA S COM DE TINTAS EIRELLI EPP | D18: 17.034.494/0001-28 | E18: c) | F18: Boleto | G18: 2023-02-27 | H18: 3421 | I18: 2023-02-27 | J18: 74.06
A19: 14 | B19: 1 | C19: CANADINHA S COM DE TINTAS EIRELLI EPP | D19: 17.034.494/0001-28 | E19: c) | F19: Boleto | G19: 2023-02-27 | H19: 3403 | I19: 2023-02-27 | J19: 86.14
A20: Pág | B20: 1 | I20: Total | J20: =SUM(J6:J19) -> 6971.03
A21: Sumaré - SP, 09 de maio de 2023
C23: Waléria Cristina dos Santos Lira | F23: Thaís Santana Leite Souza dos Santos
C24: Assistente Administrativo | F24: Coordenadora
A26: PRESTAÇÃO DE CONTAS
A27: RELAÇÃO DE DESPESAS
A29: Lar Batista de Crianças em Sumaré - Família Acolhedora | H29: TC Nº 29930/2023 - Janeiro a abril
A30: Nº | B30: OR | C30: Credor | D30: CGC/CPF/RG | E30: ND | F30: CH/OB | G30: Data | H30: Tít. de Crédito | I30: Data de Emissão | J30: Valor Líquido
A31: 15 | B31: 1 | C31: AUTO VIAÇÃO OURO VERDE LTDA | D31: 43.257.658/0004-39 | E31: a) | F31: Boleto | G31: 2023-02-28 | H31: Boleto | I31: 2023-02-28 | J31: 220
A32: 16 | B32: 1 | C32: SODEXO DO BRASIL COMERCIAL S.A. | D32: 49.930.514/0001-35 | E32: a) | F32: Boleto | G32: 2023-02-28 | H32: 528768 | I32: 2023-02-28 | J32: 640
A33: 17 | B33: 1 | C33: RICARDO COSTA DOS SANTOS | D33: 12.298.967/0001-80 | E33: d) | F33: Transferência | G33: 2023-02-28 | H33: 154 | I33: 2023-02-28 | J33: 855
A46: Pág | B46: =B20+1 -> 2 | I46: Total | J46: =SUM(J31:J45)+J20 -> 8686.03
A47: Sumaré - SP, 09 de maio de 2023
C49: Waléria Cristina dos Santos Lira | F49: Thaís Santana Leite Souza dos Santos
C50: Assistente Administrativo | F50: Coordenadora
A52: PRESTAÇÃO DE CONTAS
A53: RELAÇÃO DE DESPESAS
A55: Lar Batista de Crianças em Sumaré - Família Acolhedora | H55: TC Nº 29930/2023 - Janeiro a abril
A56: Nº | B56: OR | C56: Credor | D56: CGC/CPF/RG | E56: ND | F56: CH/OB | G56: Data | H56: Tít. de Crédito | I56: Data de Emissão | J56: Valor Líquido
A57: 18 | B57: 1 | C57: WALERIA CRISTINA DOS SANTOS LIRA | D57: 969.993.652-53 | E57: a) | F57: Transferência | G57: 2023-03-06 | H57: Holerite | I57: 2023-03-06 | J57: 524.17
A58: 19 | B58: 1 | C58: TAYLINE GUILHERME SILVA | D58: 401.531.228-70 | E58: a) | F58: Transferência | G58: 2023-03-06 | H58: Holerite | I58: 2023-03-06 | J58: 616.67
A59: 20 | B59: 1 | C59: GABRIELLY DA SILVA SEIXA | D59: 502.783.448-95 | E59: a) | F59: Transferência | G59: 2023-03-06 | H59: Holerite | I59: 2023-03-06 | J59: 604.67
A60: 21 | B60: 1 | C60: FGTS | D60: N/A | E60: a) | F60: Transferência | G60: 2023-03-07 | H60: Guia | I60: 2023-03-07 | J60: 496
A61: 22 | B61: 1 | C61: CANADINHA S COMERCIO DE TINTAS EIRELI | D61: 17.034.494/0001-28 | E61: c) | F61: Boleto | G61: 2023-03-13 | H61: Boleto | I61: 2023-03-13 | J61: 46.26
A62: 23 | B62: 1 | C62: LEANDRO RODRIGUES AZENHA - EPP | D62: 24.896.117/0001-63 | E62: c) | F62: Boleto | G62: 2023-03-13 | H62: 4820 | I62: 2023-03-13 | J62: 589.68
A63: 24 | B63: 1 | C63: THAÍS SANTANA LEITE SOUZA DOS SANTOS | D63: 387.425.918-80 | E63: a) | F63: Transferência | G63: 2023-03-20 | H63: Holerite | I63: 2023-03-20 | J63: 3212.12
A64: 25 | B64: 1 | C64: SECRETARIA DA REceita Federal do Brasil | D64: 00.394.460/0058-87 | E64: a) | F64: Guia | G64: 2023-03-20 | H64: Guia | I64: 2023-03-20 | J64: 197.55
A65: 26 | B65: 1 | C65: ATAIDE SICONHA ZAGUE & CIA LTDA | D65: 52.594.843/0001-67 | E65: c) | F65: Boleto | G65: 2023-03-21 | H65: 71271 | I65: 2023-03-21 | J65: 256.97
A66: 27 | B66: 1 | C66: AUTO POSTO REBOUCAS LTDA | D66: 55.422.984/0001-90 | E66: g) | F66: Boleto | G66: 2023-03-21 | H66: 10178 | I66: 2023-03-21 | J66: 370
A67: 28 | B67: 1 | C67: PATRÍCIO JOSÉ MARTINS | D67: 32.518.186/0001-61 | E67: c) | F67: Transferência | G67: 2023-03-21 | H67: 233 | I67: 2023-03-21 | J67: 150
A68: 29 | B68: 1 | C68: SILVIA DE OLIVEIRA GODOY DE CASTRO | D68: 024.749.418-60 | E68: e) | F68: Transferência | G68: 2023-03-23 | H68: Recibo | I68: 2023-03-23 | J68: 479.19
A69: 30 | B69: 1 | C69: INStituto Nacional do Seguro Social | D69: 16.727.230.0001-97 | E69: a) | F69: Transferência | G69: 2023-03-23 | H69: Boleto | I69: 2023-03-23 | J69: 570.66
A70: 31 | B70: 1 | C70: CANADINHA S COMERCIO DE TINTAS EIRELI | D70: 17.034.494/0001-28 | E70: c) | F70: Boleto | G70: 2023-03-23 | H70: 3395 | I70: 2023-03-23 | J70: 532.12
A72: Pág | B72: =B46+1 -> 3 | I72: Total | J72: =SUM(J57:J71)+J46 -> 17332.09
A73: Sumaré - SP, 09 de maio de 2023
C75: Waléria Cristina dos Santos Lira | F75: Thaís Santana Leite Souza dos Santos
C76: Assistente Administrativo | F76: Coordenadora
A79: PRESTAÇÃO DE CONTAS
A80: RELAÇÃO DE DESPESAS
A82: Lar Batista de Crianças em Sumaré - Família Acolhedora | H82: TC Nº 29930/2023 - Janeiro a abril
A83: Nº | B83: OR | C83: Credor | D83: CGC/CPF/RG | E83: ND | F83: CH/OB | G83: Data | H83: Tít. de Crédito | I83: Data de Emissão | J83: Valor Líquido
A84: 32 | B84: 1 | C84: KALUNGA sA | D84: 43.283.811/0224-71 | E84: h) | F84: Débito | G84: 2023-03-27 | H84: 22123 | I84: 2023-03-27 | J84: 1842.94
A85: 33 | B85: 1 | C85: CompaNHIA PAULISTA DE FORÇA E LUZ | D85: 33.050.196/0001-88 | E85: f) | F85: Boleto | G85: 2023-03-27 | H85: Fatura | I85: 2023-03-27 | J85: 194.31
A86: 34 | B86: 1 | C86: LILIAn A. MALAQUIAS CAROLINO-ME | D86: 23.891.222/0001-47 | E86: c) | F86: Boleto | G86: 2023-03-30 | H86: 1337 | I86: 2023-03-30 | J86: 792
A87: 35 | B87: 1 | C87: SODEXO DO BRASIL COMERCIAL S.A. | D87: 49.930.514/0001-35 | E87: a) | F87: Boleto | G87: 2023-03-30 | H87: 731688 | I87: 2023-03-30 | J87: 800
A88: 36 | B88: 1 | C88: AUTO VIAÇÃO OURO VERDE LTDA | D88: 43.257.658/0004-39 | E88: a) | F88: Boleto | G88: 2023-03-30 | H88: Boleto | I88: 2023-03-30 | J88: 176
A89: 37 | B89: 1 | C89: SECRETARIA DA REceita Federal do Brasil | D89: 00.394.460/0058-87 | E89: a) | F89: Guia | G89: 2023-03-30 | H89: Guia | I89: 2023-03-30 | J89: 197.55
A90: 38 | B90: 1 | C90: INStituto Nacional do Seguro Social | D90: 16.727.230.0001-97 | E90: a) | F90: Transferência | G90: 2023-03-30 | H90: Boleto | I90: 2023-03-30 | J90: 800
A91: 39 | B91: 1 | C91: WALERIA CRISTINA DOS SANTOS LIRA | D91: 969.993.652-53 | E91: a) | F91: Transferência | G91: 2023-03-31 | H91: Holerite | I91: 2023-03-31 | J91: 1566.53
A92: 40 | B92: 1 | C92: TAYLINE GUILHERME SILVA | D92: 401.531.228-70 | E92: a) | F92: Transferência | G92: 2023-03-31 | H92: Holerite | I92: 2023-03-31 | J92: 1839.53
A93: 41 | B93: 1 | C93: GABRIELLY DA SILVA SEIXA | D93: 502.783.448-95 | E93: a) | F93: Transferência | G93: 2023-03-31 | H93: Holerite | I93: 2023-03-31 | J93: 1719.53
A94: 42 | B94: 1 | C94: THAÍS SANTANA LEITE SOUZA DOS SANTOS | D94: 387.425.918-80 | E94: a) | F94: Transferência | G94: 2023-03-31 | H94: Holerite | I94: 2023-03-31 | J94: 3674.28
A95: 43 | B95: 1 | C95: AMERICANA ASSESSORIA EM MEDICINA OCUPACIONAL LTDA | D95: 02.435.349/0001-81 | E95: d) | F95: Boleto | G95: 2023-03-31 | H95: 85543 | I95: 2023-03-31 | J95: 73.9
A96: 44 | B96: 1 | C96: UNIVERSO DOS RET COM TEC LTDA | D96: 14.337.602/0001-43 | E96: h) | F96: Débito | G96: 2023-03-02 | H96: 234 | I96: 2023-03-02 | J96: 381.7
A97: 45 | B97: 1 | C97: MOVEIS ESPLANADA LTDA | D97: 09.184.779/0032-13 | E97: h) | F97: Débito | G97: 2023-03-02 | H97: 3887 | I97: 2023-03-02 | J97: 450
A99: Pág | B99: 4 | I99: Total | J99: =SUM(J84:J98)+J72 -> 31840.36
A100: Sumaré - SP, 09 de maio de 2023
C102: Waléria Cristina dos Santos Lira | F102: Thaís Santana Leite Souza dos Santos
C103: Assistente Administrativo | F103: Coordenadora
A105: PRESTAÇÃO DE CONTAS
A106: RELAÇÃO DE DESPESAS
A108: Lar Batista de Crianças em Sumaré - Família Acolhedora | H108: TC Nº 29930/2023 - Janeiro a abril
A109: Nº | B109: OR | C109: Credor | D109: CGC/CPF/RG | E109: ND | F109: CH/OB | G109: Data | H109: Tít. de Crédito | I109: Data de Emissão | J109: Valor Líquido
A110: 46 | B110: 1 | C110: S V COMERCIO DE PRESENTES LTDA | D110: 14.395.513/0015-59 | E110: h) | F110: Débito | G110: 2023-03-02 | H110: 3264 | I110: 2023-03-02 | J110: 216.85
A111: 47 | B111: 1 | C111: KALUNGA SA | D111: 43.283.811/0224-71 | E111: h) | F111: Débito | G111: 2023-03-02 | H111: 22575 | I111: 2023-03-02 | J111: 336.7
A112: 48 | B112: 1 | C112: LOJAS AMERICANAS AS | D112: 00.776.574/0695-12 | E112: b) | F112: Débito | G112: 2023-03-03 | H112: 23971 | I112: 2023-03-03 | J112: 118.26
A113: 49 | B113: 1 | C113: LEANDRO RODRIGUES AZENHA - EPP | D113: 24.896.117/0001-63 | E113: c) | F113: Débito | G113: 2023-03-03 | H113: 4750 | I113: 2023-03-03 | J113: 1475.77
A114: 50 | B114: 1 | C114: DIGITAL CARIMBO LTDA - ME | D114: 04.639.091/0001-60 | E114: c) | F114: Débito | G114: 2023-03-10 | H114: 4611 | I114: 2023-03-10 | J114: 17
A115: 51 | B115: 1 | C115: TIM S.A. | D115: 02.421.421/0200-66 | E115: f) | F115: Débito | G115: 2023-03-13 | H115: 61033 | I115: 2023-03-13 | J115: 10
A116: 52 | B116: 1 | C116: KALUNGA SA | D116: 43.283.811/0224-71 | E116: h) | F116: Débito | G116: 2023-03-14 | H116: 127245 | I116: 2023-03-14 | J116: 2516.55
A117: 53 | B117: 1 | C117: GISLAINE GIROTTO ZORZETTO | D117: 24.119.305/0001-85 | E117: h) | F117: Débito | G117: 2023-03-16 | H117: 45 | I117: 2023-03-16 | J117: 66
A118: 54 | B118: 1 | C118: RESTAURANTE BARDANA | D118: 07.191.487/0001-86 | E118: b) | F118: Débito | G118: 2023-03-21 | H118: 15837 | I118: 2023-03-21 | J118: 139.1
A119: 55 | B119: 1 | C119: Solar Gaucho Grill | D119: 46.406.963/0001-90 | E119: b) | F119: Débito | G119: 2023-03-22 | H119: 93191 | I119: 2023-03-22 | J119: 172.2
A120: 56 | B120: 1 | C120: MONTAGNER E CIA LTDA | D120: 62.620.240/0001-46 | E120: b) | F120: Débito | G120: 2023-03-23 | H120: 23759 | I120: 2023-03-23 | J120: 111.16
A121: 57 | B121: 1 | C121: AUTO POSTO BEIRA RIO | D121: 21.367.194/0001-30 | E121: g) | F121: Débito | G121: 2023-03-23 | H121: 141664 | I121: 2023-03-23 | J121: 60
A124: Pág | B124: =B99+1 -> 5 | I124: Total | J124: =SUM(J110:J123)+J99 -> 37079.95
A125: Sumaré - SP, 09 de maio de 2023
C127: Waléria Cristina dos Santos Lira | F127: Thaís Santana Leite Souza dos Santos
C128: Assistente Administrativo | F128: Coordenadora
A130: Lar Batista de Crianças em Sumaré - Família Acolhedora | H130: TC Nº 29930/2023 - Janeiro a abril
A131: Nº | B131: OR | C131: Credor | D131: CGC/CPF/RG | E131: ND | F131: CH/OB | G131: Data | H131: Tít. de Crédito | I131: Data de Emissão | J131: Valor Líquido
A132: 58 | B132: 1 | C132: AUTO POSTO REBOUCAS LTDA | D132: 55.422.984/0001-90 | E132: g) | F132: Boleto | G132: 2023-04-03 | H132: 10240 | I132: 2023-04-03 | J132: 420.05
A133: 59 | B133: 1 | C133: Vilani de Aguiar Santos | D133: 364.006.103-91 | E133: d) | F133: Transferência | G133: 2023-04-05 | H133: Autônomo | I133: 2023-04-05 | J133: 300
A134: 60 | B134: 1 | C134: Instituto Nacional do Seguro Social | D134: 16.727.230.0001-97 | E134: a) | F134: Transferência | G134: 2023-04-13 | H134: Boleto | I134: 2023-04-13 | J134: 957.58
A135: 61 | B135: 1 | C135: TIM S.A. | D135: 02.421.421/0006-26 | E135: f) | F135: Boleto | G135: 2023-04-13 | H135: Fatura | I135: 2023-04-13 | J135: 52.99
A136: 62 | B136: 1 | C136: ATAIDE SICONHA ZAGUE & CIA LTDA | D136: 52.594.843/0001-67 | E136: c) | F136: Boleto | G136: 2023-04-20 | H136: 71271 | I136: 2023-04-20 | J136: 256.96
A137: 63 | B137: 1 | C137: AUTO POSTO REBOUCAS LTDA | D137: 55.422.984/0001-90 | E137: g) | F137: Boleto | G137: 2023-04-20 | H137: 10537 | I137: 2023-04-20 | J137: 190
A138: 64 | B138: 1 | C138: STARHOUSE INFORMATICA EIRELI | D138: 04.617.659/0001-42 | E138: d) | F138: Transferência | G138: 2023-04-24 | H138: 7732 | I138: 2023-04-24 | J138: 100
A139: 65 | B139: 1 | C139: SILVIA DE OLIVEIRA GODOY DE CASTRO | D139: 024.749.418-60 | E139: e) | F139: Transferência | G139: 2023-04-24 | H139: Recibo | I139: 2023-04-24 | J139: 479.19
A140: 66 | B140: 1 | C140: KALUNGA SA | D140: 43.283.811/0224-71 | E140: h) | F140: Boleto | G140: 2023-04-24 | H140: 22123 | I140: 2023-04-24 | J140: 1842.94
A141: 67 | B141: 1 | C141: LILIAn A. MALAQUIAS CAROLINO-ME | D141: 23.891.222/0001-47 | E141: c) | F141: Boleto | G141: 2023-04-24 | H141: 1337 | I141: 2023-04-24 | J141: 792
A142: 68 | B142: 1 | C142: AM SUZAKI AVILA GRAFICA ME | D142: 30.214.485/0001-85 | E142: d) | F142: Transferência | G142: 2023-04-24 | H142: 449 | I142: 2023-04-24 | J142: 776
A143: 69 | B143: 1 | C143: WALERIA CRISTINA DOS SANTOS LIRA | D143: 696.993.652-53 | E143: a) | F143: Transferência | G143: 2023-04-28 | H143: Holerite | I143: 2023-04-28 | J143: 1566.53
A144: 70 | B144: 1 | C144: TAYLINE GUILHERME SILVA | D144: 401.531.228-70 | E144: a) | F144: Transferência | G144: 2023-04-28 | H144: Holerite | I144: 2023-04-28 | J144: 1839.53
A145: 71 | B145: 1 | C145: GABRIELLY DA SILVA SEIXA | D145: 502.783.448-95 | E145: a) | F145: Transferência | G145: 2023-04-28 | H145: Holerite | I145: 2023-04-28 | J145: 1719.53
A146: Pág | B146: 6 | I146: Total | J146: =SUM(J132:J145)+J124 -> 48373.25
A147: Sumaré - SP, 09 de maio de 2023
C149: =$C$23 -> Waléria Cristina dos Santos Lira | F149: =$F$23 -> Thaís Santana Leite Souza dos Santos
C150: Assistente Administrativo | F150: Coordenador
A152: PRESTAÇÃO DE CONTAS
A153: RELAÇÃO DE DESPESAS
A155: =Conciliação!$A$4 -> Lar Batista de Crianças em Sumaré-Serviço de Acolhimento em Família Acolhedora | H155: =Conciliação!$C$4 -> TC Nº 29930 - MAIO A AGOSTO/2023
A156: Nº | B156: OR | C156: Credor | D156: CGC/CPF/RG | E156: ND | F156: CH/OB | G156: Data | H156: Tít. de Crédito | I156: Data de Emissão | J156: Valor Líquido
A171: Pág | B171: =B146+1 -> 7 | I171: Total | J171: =SUM(J157:J170)+J146 -> 48373.25
A172: =Conciliação!$A$36:$E$36 -> Sumaré - SP, 11 de setembro de 2023
C174: =$C$23 -> Waléria Cristina dos Santos Lira | F174: =$F$23 -> Thaís Santana Leite Souza dos Santos
C175: Assistente Administrativo | F175: Coordenador
A177: PRESTAÇÃO DE CONTAS
A178: RELAÇÃO DE DESPESAS
A180: Lar Batista de Crianças em Sumaré - Família Acolhedora | H180: =Conciliação!$C$4 -> TC Nº 29930 - MAIO A AGOSTO/2023
A181: Nº | B181: OR | C181: Credor | D181: CGC/CPF/RG | E181: ND | F181: CH/OB | G181: Data | H181: Tít. de Crédito | I181: Data de Emissão | J181: Valor Líquido
A182: 362 | B182: 1 | C182: COMPANHIA PAULISTA DE FORÇA E LUZ | D182: 33.050.196/0001-88 | E182: 12 | F182: Boleto | G182: 2022-11-11 | H182: Fatura | I182: 2022-11-11 | J182: 324
A183: 363 | B183: 1 | C183: BRK AMBIENTAL - SUMARÉ S/A | D183: 21.480.839/0001-44 | E183: 12 | F183: Débito | G183: 2022-11-11 | H183: Fatura | I183: 2022-11-11 | J183: 225.69
A184: 364 | B184: 1 | C184: SUPERMERCADO CAVICCHIOLI LTDA | D184: 43.259.548/0012-16 | E184: 4 | F184: Débito | G184: 2022-11-21 | H184: 68996 | I184: 2022-11-21 | J184: 179.11
A185: 365 | B185: 1 | C185: NOVAES E PUNJILO LTDA ME | D185: 23.705.386/0002-42 | E185: 7 | F185: Débito | G185: 2022-11-21 | H185: 2333 | I185: 2022-11-21 | J185: 49.8
A186: 366 | B186: 1 | C186: SILVIA DE OLIVEIRA GODOY DE CASTRO | D186: 024.749.418-60 | E186: 8 | F186: Transferência | G186: 2022-11-22 | H186: Recibo | I186: 2022-11-22 | J186: 600
A187: 367 | B187: 1 | C187: Instituto Nacional do Seguro Social | D187: 16.727.230.0001-97 | E187: 1 | F187: Transferência | G187: 2022-11-22 | H187: Boleto | I187: 2022-11-22 | J187: 2146.11
A188: 368 | B188: 1 | C188: AUTO POSTO REBOUCAS LTDA | D188: 55.422.984/0001-90 | E188: 11 | F188: Débito | G188: 2022-11-22 | H188: 8683 | I188: 2022-11-22 | J188: 1624.68
A189: 369 | B189: 5 | C189: PROAGIR CLUBE DE BENEFÍCIOS SOCIAIS | D189: 34.002.229/0001-87 | E189: 1 | F189: Débito | G189: 2022-11-22 | H189: Boleto | I189: 2022-11-22 | J189: 108.5
A190: 370 | B190: 1 | C190: ATLANTICO CONSULTING & PARTNERS LTDA | D190: 04.791.615/0001-34 | E190: 3 | F190: Boleto | G190: 2022-11-22 | H190: 171183 | I190: 2022-11-22 | J190: 992.92
A191: 371 | B191: 1 | C191: SODEXO DO BRASIL COMERCIAL S.A. | D191: 49.930.514/0001-35 | E191: 1 | F191: Boleto | G191: 2022-11-22 | H191: 767066 | I191: 2022-11-22 | J191: 1120
A192: 372 | B192: 1 | C192: NET SERVIÇOS DE COMUNICAÇÃO S.A. | D192: 00.108.786/0001-65 | E192: 12 | F192: Boleto | G192: 2022-11-22 | H192: Fatura | I192: 2022-11-22 | J192: 240.54
A193: 373 | B193: 1 | C193: NET SERVIÇOS DE COMUNICAÇÃO S.A. | D193: 00.108.786/0001-65 | E193: 12 | F193: Boleto | G193: 2022-11-22 | H193: Fatura | I193: 2022-11-22 | J193: 372.87
A194: 374 | B194: 1 | C194: Edineide Muniz Portugal da Silva | D194: 328.578.455-53 | E194: 1 | F194: Transferência | G194: 2022-11-23 | H194: 13° | I194: 2022-11-23 | J194: 1660.68
A195: 375 | B195: 1 | C195: Secretaria da Receita Federal do Brasil | D195: 00.394.460/0058-87 | E195: 1 | F195: Guia | G195: 2022-11-23 | H195: Guia | I195: 2022-11-23 | J195: 427.53
A196: Pág | B196: =B171+1 -> 8 | I196: Total | J196: =SUM(J182:J195)+J171 -> 58445.68
A197: =Conciliação!$A$36:$E$36 -> Sumaré - SP, 11 de setembro de 2023
C199: =$C$23 -> Waléria Cristina dos Santos Lira | F199: =$F$23 -> Thaís Santana Leite Souza dos Santos
C200: Assistente Administrativo | F200: Coordenador
A202: PRESTAÇÃO DE CONTAS
A203: RELAÇÃO DE DESPESAS
A205: =Conciliação!$A$4 -> Lar Batista de Crianças em Sumaré-Serviço de Acolhimento em Família Acolhedora | H205: =Conciliação!$C$4 -> TC Nº 29930 - MAIO A AGOSTO/2023
A206: Nº | B206: OR | C206: Credor | D206: CGC/CPF/RG | E206: ND | F206: CH/OB | G206: Data | H206: Tít. de Crédito | I206: Data de Emissão | J206: Valor Líquido
A207: 376 | B207: 1 | C207: Secretaria da Receita Federal do Brasil | D207: 00.394.460/0058-87 | E207: 1 | F207: Guia | G207: 2022-11-23 | H207: Guia | I207: 2022-11-23 | J207: 58.58
A208: 377 | B208: 1 | C208: UNIODONTO DE CAMPINAS COOPERATIVA ODOTOLOGIA | D208: 51.304.798/0001-04 | E208: 1 | F208: Boleto | G208: 2022-11-23 | I208: 2022-11-23 | J208: 331.2
A209: 378 | B209: 1 | C209: UNIODONTO DE CAMPINAS COOPERATIVA ODOTOLOGIA | D209: 51.304.798/0001-04 | E209: 1 | F209: Boleto | G209: 2022-11-23 | I209: 2022-11-23 | J209: 234.4
A210: 379 | B210: 1 | C210: HIGIENEX PRODUTOS DE LIMPEZA LTDA | D210: 56.637.804/0001-50 | E210: 7 | F210: Débito | G210: 2022-11-24 | H210: 30221 | I210: 2022-11-24 | J210: 274.9
A211: 380 | B211: 1 | C211: Ailton Santana da Silva | D211: 082.785.635-00 | E211: 1 | F211: Transferência | G211: 2022-11-24 | H211: 13° | I211: 2022-11-24 | J211: 1241.12
A212: 381 | B212: 1 | C212: LILIAN A. MALAQUIAS CAROLINO-ME | D212: 23.891.222/0001-47 | E212: 5 | F212: Débito | G212: 2022-11-24 | H212: 1244 | I212: 2022-11-24 | J212: 186.17
A213: 382 | B213: 1 | C213: LEANDRO RODRIGUES AZENHA - EPP | D213: 24.896.117/0001-63 | E213: 7 | F213: Boleto | G213: 2022-11-25 | H213: 4484 | I213: 2022-11-25 | J213: 95.95
A214: 383 | B214: 1 | C214: GOODBOM SUPERMERCADOS LTDA | D214: 56.794.852/0001-52 | E214: 7 | F214: Débito | G214: 2022-11-25 | H214: 113737 | I214: 2022-11-25 | J214: 323.74
A215: 384 | B215: 1 | C215: GOODBOM SUPERMERCADOS LTDA | D215: 56.794.852/0001-52 | E215: 4 | F215: Boleto | G215: 2022-11-25 | H215: 113735 | I215: 2022-11-25 | J215: 1121.33
A216: 385 | B216: 1 | C216: PÃO DA HORA PANIFICADORA LTDA - ME | D216: 08.681.415/0001-80 | E216: 4 | F216: Transferência | G216: 2022-11-28 | H216: 818 | I216: 2022-11-28 | J216: 136.43
L220: =L219+1 -> 1
A221: Pág | B221: =B196+1 -> 9 | I221: Total | J221: =SUM(J207:J220)+J196 -> 62449.5
A222: =Conciliação!$A$36:$E$36 -> Sumaré - SP, 11 de setembro de 2023
C224: =$C$23 -> Waléria Cristina dos Santos Lira | F224: =$F$23 -> Thaís Santana Leite Souza dos Santos
C225: Assistente Administrativo | F225: Coordenador
A227: PRESTAÇÃO DE CONTAS
A228: RELAÇÃO DE DESPESAS
A230: =Conciliação!$A$4 -> Lar Batista de Crianças em Sumaré-Serviço de Acolhimento em Família Acolhedora | H230: =Conciliação!$C$4 -> TC Nº 29930 - MAIO A AGOSTO/2023
A231: Nº | B231: OR | C231: Credor | D231: CGC/CPF/RG | E231: ND | F231: CH/OB | G231: Data | H231: Tít. de Crédito | I231: Data de Emissão | J231: Valor Líquido
A232: 386 | B232: 1 | C232: STARHOUSE INFORMATICA EIRELI | D232: 04.617.659/0001-42 | E232: 7 | F232: Débito | G232: 2022-12-02 | H232: 881210 | I232: 2022-12-02 | J232: 341.8
A233: 387 | B233: 1 | C233: Edineide Muniz Portugal da Silva | D233: 328.578.455-53 | E233: 1 | F233: Transferência | G233: 2022-12-07 | H233: Holerite | I233: 2022-12-07 | J233: 3044.48
A234: 388 | B234: 1 | C234: Cristina dos Santos Lira | D234: 792.960.922-72 | E234: 1 | F234: Transferência | G234: 2022-12-07 | H234: Holerite | I234: 2022-12-07 | J234: 1840.19
A235: 389 | B235: 1 | C235: Karina Oliveira Constanari | D235: 339.956.588-73 | E235: 1 | F235: Transferência | G235: 2022-12-07 | H235: Recibo | I235: 2022-12-07 | J235: 2763.53
A236: 390 | B236: 1 | C236: Sueli Regina B. Rodrigues | D236: 054.023.978-05 | E236: 1 | F236: Transferência | G236: 2022-12-07 | H236: Holerite | I236: 2022-12-07 | J236: 1891.17
A237: 391 | B237: 1 | C237: Iraci Fernandes de Carvalho | D237: 311.652.008-99 | E237: 1 | F237: Transferência | G237: 2022-12-07 | H237: Holerite | I237: 2022-12-07 | J237: 2380.93
A238: 392 | B238: 5 | C238: Mariane L. Lima Mendes | D238: 47.642.134/0001-70 | E238: 1 | F238: Transferência | G238: 2022-12-07 | H238: 8 | I238: 2022-12-07 | J238: 1000
A239: 393 | B239: 1 | C239: Thais Santana L. dos Santos | D239: 387.425.918-80 | E239: 1 | F239: Transferência | G239: 2022-12-07 | H239: Holerite | I239: 2022-12-07 | J239: 2236.27
A240: 394 | B240: 5 | C240: Mayara Cristina Lima | D240: 411.542.338-20 | E240: 1 | F240: Transferência | G240: 2022-12-07 | H240: Holerite | I240: 2022-12-07 | J240: 262.2
A241: 395 | B241: 5 | C241: Vilani de Aguiar Santos | D241: 364.006.103-91 | E241: 1 | F241: Transferência | G241: 2022-12-07 | H241: Autônomo | I241: 2022-12-07 | J241: 380
A242: 396 | B242: 1 | C242: Ailton Santana da Silva | D242: 082.785.635-00 | E242: 1 | F242: Transferência | G242: 2022-12-07 | H242: Aviso Férias | I242: 2022-12-07 | J242: 2000
A243: 397 | B243: 1 | C243: FGTS | D243: N/A | E243: 1 | F243: Transferência | G243: 2022-12-07 | H243: Guia | I243: 2022-12-07 | J243: 2365.4
A244: 398 | B244: 1 | C244: Janaína de Carvalho | D244: 317.578.628-62 | E244: 1 | F244: Transferência | G244: 2022-12-08 | H244: Autônomo | I244: 2022-12-08 | J244: 300
A245: 399 | B245: 1 | C245: RENATO LIMA FERREIRA TRANSPORTES E LOCAÇÃO - ME. | D245: 21.942.316/0001-72 | E245: 9 | F245: Transferência | G245: 2022-12-15 | H245: 235 | I245: 2022-12-15 | J245: 125 | L245: =L244+1 -> 1
A246: Pág | B246: =B221+1 -> 10 | I246: Total | J246: =SUM(J232:J245)+J221 -> 83380.47
A247: =Conciliação!$A$36:$E$36 -> Sumaré - SP, 11 de setembro de 2023
C249: =$C$23 -> Waléria Cristina dos Santos Lira | F249: =$F$23 -> Thaís Santana Leite Souza dos Santos
C250: Assistente Administrativo | F250: Coordenador
A252: PRESTAÇÃO DE CONTAS
A253: RELAÇÃO DE DESPESAS
A255: =Conciliação!$A$4 -> Lar Batista de Crianças em Sumaré-Serviço de Acolhimento em Família Acolhedora | H255: =Conciliação!$C$4 -> TC Nº 29930 - MAIO A AGOSTO/2023
A256: Nº | B256: OR | C256: Credor | D256: CGC/CPF/RG | E256: ND | F256: CH/OB | G256: Data | H256: Tít. de Crédito | I256: Data de Emissão | J256: Valor Líquido
A257: 400 | B257: 1 | C257: PLANO HOSPITAL SAMARITANO LTDA | D257: 03.011.072/0001-22 | E257: 1 | F257: Transferência | G257: 2022-12-15 | H257: 1517200 | I257: 2022-12-15 | J257: 1950
A258: 401 | B258: 1 | C258: PLANO HOSPITAL SAMARITANO LTDA | D258: 03.011.072/0001-22 | E258: 1 | F258: Transferência | G258: 2022-12-15 | H258: 1536870 | I258: 2022-12-15 | J258: 1950
A259: 402 | B259: 1 | C259: Karina Oliveira Constanari | D259: 339.956.588-73 | E259: 1 | F259: Transferência | G259: 2022-12-19 | H259: Recibo | I259: 2022-12-19 | J259: 1279.48
A260: 403 | B260: 1 | C260: Instituto Nacional do Seguro Social | D260: 16.727.230.0001-97 | E260: 1 | F260: Transferência | G260: 2022-12-20 | H260: Boleto | I260: 2022-12-20 | J260: 1944.26
A261: 404 | B261: 1 | C261: Secretaria da Receita Federal do Brasil | D261: 00.394.460/0058-87 | E261: 1 | F261: Guia | G261: 2022-12-20 | H261: Guia | I261: 2022-12-20 | J261: 58.58
A262: 405 | B262: 1 | C262: Secretaria da Receita Federal do Brasil | D262: 00.394.460/0058-87 | E262: 1 | F262: Guia | G262: 2022-12-20 | H262: Guia | I262: 2022-12-20 | J262: 395.78
A263: 406 | B263: 1 | C263: ALFA IMOVEIS LTDA EPP | D263: 04.791.615/0001-34 | E263: 9 | F263: Boleto | G263: 2022-12-20 | H263: Boleto | I263: 2022-12-20 | J263: 3228.1
A264: 407 | B264: 1 | C264: Edineide Muniz Portugal da Silva | D264: 328.578.455-53 | E264: 1 | F264: Transferência | G264: 2022-12-21 | H264: Holerite | I264: 2022-12-21 | J264: 1284.76
... 196 more rows

Sheet Resumo
A3: EXECUÇÃO DE RECEITA E DESPESA
A4: Lar Batista de Crianças - Família Acolhedora | C4: =Conciliação!C4:E5 -> TC Nº 29930 - MAIO A AGOSTO/2023
A7: Receita (valores recebidos, inclusive a contrapartida e os rendimentos –discriminar) | C7: Despesas (despesas realizadas – conforme relação de pagamentos) | G7: 20833.33 | H7: =G7*4 -> 83333.32
A8: Discriminação | B8: Valor | C8: Discriminação | E8: Valor
A9: CONCEDENTE | B9: TOTAL | C9: CONVENENTE | E9: TOTAL
A10: MUNICIPAL | G10: MAIO | H10: JUNHO | I10: JULHO | J10: AGOSTO | K10: TOTAL
A11: Saldo Anterior | B11: 29389.67 | C11: a) Recursos Humanos | E11: =K11 -> 49792.39 | G11: 12589.99 | H11: 13079.45 | I11: 12833.79 | J11: 11289.16 | K11: =SUM(G11:J11) -> 49792.39
A12: Depósito maio a agosto | B12: 83333.32 | C12: b) Gêneros Alimentícios | E12: 1399.2 | G12: 381.8 | H12: 857.92 | I12: 159.48 | J12: 0 | K12: =SUM(G12:J12) -> 1399.2
A13: Aplicação financeira - maio a agosto | B13: =K34 -> 212.51 | C13: c) Materiais de Consumo | E13: 767.77 | G13: 506.95 | H13: 218.02 | I13: 42.8 | J13: 0 | K13: 767.77
C14: d) Serviços de terceiros | E14: 3530 | G14: 2350 | H14: 300 | I14: 600 | J14: 280 | K14: 3530
C15: e) Locação diversas | E15: 3935.88 | G15: 479.19 | H15: 479.19 | I15: 838.97 | J15: 2138.53 | K15: 3935.88
A16: Total Recursos Municipal | B16: =SUM(B11:B15) -> 112935.5 | C16: f) Utilidades Públicas | E16: 686.31 | G16: 52.99 | H16: 314.87 | I16: 183.93 | J16: 134.52 | K16: 686.31
C17: g) Combustível | E17: 3413.02 | G17: 735.54 | H17: 1030.11 | I17: 820 | J17: 827.37 | K17: 3413.02
C18: h) Bens e Materiaiss permanentes | E18: 1842.94 | G18: 1842.94 | H18: 0 | I18: 0 | J18: 0 | K18: 1842.94
K19: 0
C20: Sub total | E20: =SUM(E7:E19) -> 65367.51 | K20: 0
C21: Saldo | E21: =B16-E20 -> 47567.99 | K21: 0
K22: 0
K23: 0
G24: =SUM(G11:G23) -> 18939.4 | H24: =SUM(H11:H23) -> 16279.56 | I24: =SUM(I11:I23) -> 15478.97 | J24: =SUM(J11:J23) -> 14669.58 | K24: =SUM(K11:K23) -> 65367.51
G33: MAIO | H33: JUNHO | I33: JULHO | J33: AGOSTO | K33: TOTAL
A34: Sub total | B34: =B16+B21 -> 112935.5 | C34: Sub total | E34: =E20 -> 65367.51 | F34: Aplicação | G34: 33.57 | H34: 41.69 | I34: 56.26 | J34: 80.99 | K34: =SUM(G34:J34) -> 212.51
F35: Municipal | K35: =SUM(G35:J35) -> 0
K36: =SUM(G36:J36) -> 0
G37: =SUM(G34:G36) -> 33.57 | H37: =SUM(H34:H36) -> 41.69 | I37: =SUM(I34:I36) -> 56.26 | J37: =SUM(J34:J36) -> 80.99 | K37: =SUM(K34:K36) -> 212.51 | M37: =B34-K37 -> 112722.99
C38: Saldo | E38: =B34-E34 -> 47567.99
A40: Total: | B40: =B34 -> 112935.5 | C40: Total: | E40: =SUM(E34+E38) -> 112935.5
A41: Sumaré - SP, 11 de setembro de 2023
A43: Waléria Cristina dos Santos Lira | C43: =Conciliação!C38:E38 -> Thaís Santana Leite Souza dos Santos
A44: =Conciliação!A39:B39 -> Assistente Administrativo | C44: Coordenadora

Sheet Conciliação
A1: CONCILIAÇÃO BANCÁRIA
A4: Lar Batista de Crianças em Sumaré-Serviço de Acolhimento em Família Acolhedora | C4: TC Nº 29930 - MAIO A AGOSTO/2023
A7: Banco: Banco do Brasil | C7: N.º da Agência/Conta Corrente: C/C 2373-6
A10: Detalhamento: Valores expressos em reais | D10: Valor R$
D11: Parcial | E11: Total
A12: 1 - Saldo conforme extrato anexo | E12: 47266.71
A13: Subtrair
A14: 2 – Crédito em contas não correspondidos | E14: =SUM(D15:D21) -> 112935.5
C15: Saldo anterior | D15: =Resumo!B11+Resumo!B27 -> 29389.67
C16: Repasse | D16: =Resumo!B12 -> 83333.32
C17: Aplicação financeira | D17: =Resumo!B13 -> 212.51
C18: =Resumo!A18 -> 0 | D18: =Resumo!B21 -> 0
A27: Somar
A29: 3 - Débito não correspondido | E29: =SUM(D32:D34) -> 301.28
C32: Despesas não permitidas a ser restituida a conta | D32: 301.28
A35: 4 - Saldo do Balancete Financeiro (1 - 2 + 3) | E35: =E12-E14-E21+E29 -> -65367.51
A36: Sumaré - SP, 11 de setembro de 2023
A38: Waléria Cristina dos Santos Lira | C38: Thaís Santana Leite Souza dos Santos
A39: Assistente Administrativo | C39: Coordenadora

Sheet ND
A2: Cód. | B2: Origem dos recursos - OR
A3: 1 | B3: Despesas realizadas com recursos municipais
A4: 5 | B4: Despesas realizadas com recursos federais
A7: Cód. | B7: Natureza da Despesa - ND
A8: 1 | B8: RH (Salários+Encargos+Provisão+Benefícios)
A9: 2 | B9: Serviços de Terceiros – PF (Autônomo)
A10: 3 | B10: Serviços de Consultoria/Auditoria/Capacitação
A11: 4 | B11: Alimentação
A12: 5 | B12: Mat. Trabalho Socioeducativo
A13: 6 | B13: Equipamentos para Escritório
A14: 7 | B14: Material de Consumo
A15: 8 | B15: Aluguel/IPTU
A16: 9 | B16: Passeios/Atividades externas
A17: 10 | B17: Vestuário
A18: 11 | B18: Transporte/Pedágios/Combustíveis
A19: 12 | B19: Concessionárias
A20: 13 | B20: Manutenção e Reparo

Sheet RP10 Municipal
A8: ANEXO RP-10 - REPASSES AO TERCEIRO SETOR - DEMONSTRATIVO INTEGRAL DAS RECEITAS E DESPESAS - TERMO DE COLABORAÇÃO
A10: ÓRGÃO PÚBLICO: PREFEITURA MUNICIPAL DE SUMARÉ
A11: ORGANIZAÇÃO DA SOCIEDADE CIVIL: LAR BATISTA DE CRIANÇAS EM SUMARÉ - FAMÍLIA ACOLHEDORA
A12: CNPJ: 60.958.972/0001-15 (MATRIZ)
A13: ENDEREÇO E CEP: Rua Antônio do Valle Melo, 1397 - Centro - CEP 13.172-011
A14: CNPJ: 60.958.972/0020-88 SERVIÇO DE ACOLHIMENTO EM FAMÍLIA ACOLHEDORA
A15: RESPONSÁVEL(IS) PELA OSC: MARCELO GOMES LONGO
A16: CPF: 972.482.407-10
A17: OBJETO DA PARCERIA: SERVIÇO DE ACOLHIMENTO EM FAMÍLIA ACOLHEDORA
A18: EXERCÍCIO: 2023 (MAIO A AGOSTO)
A19: ORIGEM DOS RECURSOS (1): MUNICIPAL
A21: DOCUMENTO | D21: DATA | E21: VIGÊNCIA | F21: VALOR - R$ | H21: 4350
A22: TERMO DE COLABORAÇÃO 29.930 | D22: 2022-12-23 | E22: 01/01/2023 a 31/12/2023 | F22: 367000 | H22: =H21*8 -> 34800
I23: 31175.12
A25: DEMONSTRATIVO DOS RECURSOS DISPONÍVEIS NO QUADRIMESTRE
A26: DATA PREVISTA PARA O REPASSE (2) | B26: VALORES PREVISTOS (R$) | D26: DATA DO REPASSE | E26: NÚMERO DO DOCUMENTO DE CRÉDITO | F26: VALORES REPASSADOS (R$)
A27: 2023-05-01 | B27: 20833.33 | D27: 2023-05-18 | E27: 6343/2023 | F27: 20833.33
A28: 2023-06-01 | B28: =B27 -> 20833.33 | D28: 2023-06-20 | E28: 8648/2023 | F28: 20833.33
A29: 2023-07-01 | B29: =B28 -> 20833.33 | D29: 2023-07-19 | E29: 11256/2023 | F29: 20833.33
A30: 2023-08-01 | B30: =B29 -> 20833.33 | D30: 2023-08-21 | E30: 13528/2023 | F30: 20833.33
A39: (A) SALDO ANTERIOR | F39: 29389.67 | G39: 2.34
A40: (B) REPASSES PÚBLICOS NO QUADRIMESTRE | F40: =SUM(F27:F34) -> 83333.32 | G40: 0.12
A41: (C) RECEITAS COM APLICAÇÕES FINANCEIRAS DOS REPASSES PÚBLICOS | F41: 212.51 | G41: 0.13
A42: (D) OUTRAS RECEITAS DECORRENTES DA EXECUÇÃO DO AJUSTE (3) | G42: 1.02
A43: (E) TOTAL DE RECURSOS PÚBLICOS (A + B+ C + D) | F43: =SUM(F39:F42) -> 112935.5 | G43: =SUM(G39:G42) -> 3.61
A45: (F) RECURSOS PRÓPRIOS DA ENTIDADE BENEFICIÁRIA | F45: 0
A46: ((G) TOTAL DE RECURSOS DISPONÍVEIS NO QUADRIMESTRE (E + F) | F46: =F43+F45 -> 112935.5
A47: (1) Verba: Federal, Estadual ou Municipal, devendo ser elaborado um anexo para cada fonte de recurso.
A48: (2) Incluir valores previstos no exercício anterior e repassados neste exercício.
A49: (3) Receitas com estacionamento, aluguéis, entre outras
A57: O(s) signatário(s), na qualalidade de representante(s) do Lar Batista de Crianças em Sumaré vem indicar, na forma abaixo detalhada, as despesas incorridas e pagas no quadrimestre, exercício 2023 bem como as despesas a pagar no quadrimestre seguinte.
B59: DEMONSTRATIVO DAS DESPESAS INCORRIDAS NO QUADRIMESTRE
B60: ORIGEM DOS RECURSOS (4): Municipal
A61: CATEGORIA OU FINALIDADE DA DESPESA (8) | B61: DESPESAS CONTABILIZADAS NESTE EXERCÍCIO (R$) | C61: DESPESAS CONTABILIZADAS EM EXERCÍCIOS ANTERIORES E PAGAS NESTE EXERCÍCIO (R$) (H) | D61: DESPESAS CONTABILIZADAS NESTE EXERCÍCIO E PAGAS NESTE EXERCÍCIO (R$) (I) | E61: TOTAL DE DESPESAS PAGAS NESTE EXERCÍCIO (R$) (J= H + I) | F61: DESPESAS CONTABILIZADAS NESTE EXERCÍCIO A PAGAR EM EXERCÍCIOS SEGUINTES (R$)
A62: a) Recursos Humanos | B62: =Resumo!E11 -> 49792.39 | D62: =B62 -> 49792.39 | E62: =B62 -> 49792.39 | G62: SET | H62: OUT | I62: NOV | J62: DEZ | K62: TOTAL
A63: b) Gêneros Alimentícios | B63: =Resumo!E12 -> 1399.2 | D63: 1399.2 | E63: 1399.2 | G63: 20139.06 | H63: 24938.76 | I63: 23724.66 | J63: 32157.16 | K63: =SUM(G63:J63) -> 100959.64
A64: c) Materiais de Consumo | B64: =Resumo!E13 -> 767.77 | D64: 767.77 | E64: 767.77 | G64: 400 | H64: 1425 | I64: 1717 | J64: 0 | K64: =SUM(G64:J64) -> 3542
A65: d) Serviços de terceiros | B65: =Resumo!E14 -> 3530 | D65: 3530 | E65: 3530 | G65: 741.28 | H65: 741.28 | I65: 992.92 | J65: 0 | K65: 2475.48
A66: e) Locação diversas | B66: =Resumo!E15 -> 3935.88 | D66: 3935.88 | E66: 3935.88 | G66: 1612.77 | H66: 1770.06 | I66: 1436.87 | J66: 99.16 | K66: 4918.86
A67: f) Utilidades Públicas | B67: =Resumo!E16 -> 686.31 | D67: 686.31 | E67: 686.31 | G67: 433.35 | H67: 0 | I67: 186.17 | J67: 0 | K67: 619.52
A68: g) Combustível | B68: =Resumo!E17 -> 3413.02 | D68: 3413.02 | E68: 3413.02 | G68: 0 | H68: 0 | I68: 0 | J68: 0 | K68: 0
A69: h) Bens e Materiais permanentes | B69: =Resumo!E18 -> 1842.94 | D69: 1842.94 | E69: 1842.94 | G69: 1608.62 | H69: 2703.76 | I69: 744.39 | J69: 2383.39 | K69: 7440.16
G70: 600 | H70: 600 | I70: 600 | J70: 0 | K70: 1800
G71: 2928.53 | H71: 2960.53 | I71: 2928.53 | J71: 3395.81 | K71: 12213.4
G72: 0 | H72: 0 | I72: 0 | J72: 0 | K72: 0
G73: 1545.32 | H73: 2312.85 | I73: 1624.68 | J73: 0 | K73: 5482.85
G74: 896.26 | H74: 610.09 | I74: 1163.1 | J74: 0 | K74: 2669.45
A75: TOTAL | B75: =SUM(B62:B74) -> 65367.51 | D75: =SUM(D62:D74) -> 65367.51 | E75: =SUM(E62:E74) -> 65367.51 | G75: 0 | H75: 0 | I75: 0 | J75: 0 | K75: 0
A76: (4) Verba: Federal, Estadual, Municipal e Recursos Próprios, devendo ser elaborado um anexo para cada fonte de recurso. | G76: =SUM(G63:G75) -> 30905.19 | H76: =SUM(H63:H75) -> 38062.33 | I76: =SUM(I63:I75) -> 35118.32 | J76: =SUM(J63:J75) -> 38035.52 | K76: =SUM(K63:K75) -> 142121.36
A77: (5) Salários, encargos e benefícios.
A78: (6) Autônomos e pessoa jurídica.
A79: (7) Energia elétrica, água e esgoto, gás, telefone e internet.
A80: (8) No rol exemplificativo incluir também as aquisições e os compromissos assumidos que não são classificados contabilmente como DESPESAS, como, por exemplo, aquisição de bens permanentes.
A81: (9) Quando a diferença entre a Coluna DESPESAS CONTABILIZADAS NESTE EXERCÍCIO e a Coluna DESPESAS CONTABILIZADAS NESTE EXERCÍCIO E PAGAS NESTE EXERCÍCIO for decorrente de descontos obtidos ou pagamento de multa por atraso, o resultado não deve aparecer na coluna DESPESAS CONTABILIZADAS NESTE EXERCÍCIO A PAGAR EM EXERCÍCIOS SEGUINTES, uma vez que tais descontos ou multas são contabilizados em contas de receitas ou despesas. Assim sendo deverá se indicado como nota de rodapé os valores e as respectivas contas de receitas e despesas.
A82: (*) Apenas para entidades da área da Saúde.
A93: DEMONSTRATIVO DO SALDO FINANCEIRO DO QUADRIMESTRE
A94: (G) TOTAL DE RECURSOS DISPONÍVEL NO QUADRIMESTRE | F94: =F43 -> 112935.5
A95: (J) DESPESAS PAGAS NO QUADRIMESTRE (H+I) | F95: =C75+D75 -> 65367.51 | H95: =F94 -> 112935.5
A96: (K) RECURSO PÚBLICO NÃO APLICADO [E – (J – F)] | F96: 0 | H96: =F95 -> 65367.51
A97: (L) VALOR DEVOLVIDO AO ÓRGÃO PÚBLICO | F97: 0 | H97: =H95-H96 -> 47567.99 | J97: =F95 -> 65367.51
A98: (M) VALOR AUTORIZADO PARA APLICAÇÃO NO PRÓXIMO QUADRIMESTRE (K) | F98: =F94-F95 -> 47567.99 | J98: =J97-H97 -> 17799.52
J99: 533.9
A102: Declaro(amos), na qualidade de responsável(is) pela entidade supra epigrafada, sob as penas da Lei, que a despesa relacionada comprova a exata aplicação dos recursos recebidos para os fins indicados, conforme programa de trabalho aprovado, proposto ao Órgão Público Parceiro. | H102: 1583.81
H103: 19.16
H104: =H102-H103 -> 1564.65
H105: 1227.3 | I105: =H105-H103 -> 1208.14 | J105: =H102-I105 -> 375.67
A106: Local e data:
A109: Sumaré - SP , 11 de setembro de 2023
A111: Responsáveis pela Organização da Sociedade Civil: (nome, cargo e assinatura)
A115: ___________________________________________________
A116: Thaís Santana Leite Souza dos Santos
A117: Coordenadora

Sheet RP10 Federal
A8: ANEXO RP-10 - REPASSES AO TERCEIRO SETOR - DEMONSTRATIVO INTEGRAL DAS RECEITAS E DESPESAS - TERMO DE COLABORAÇÃO
A10: ÓRGÃO PÚBLICO: PREFEITURA MUNICIPAL DE SUMARÉ
A11: ORGANIZAÇÃO DA SOCIEDADE CIVIL: LAR BATISTA DE CRIANÇAS EM SUMARÉ - CASA 1
A12: CNPJ: 60.958.972/0001-15 (MATRIZ)
A13: ENDEREÇO E CEP: Rua Antônio Furlan, nº 539 - Jd. Alvorada. CEP 13.170-590
A14: CNPJ: 60.958.972/0016-00 (CASA 1)
A15: RESPONSÁVEL(IS) PELA OSC: MARCELO GOMES LONGO
A16: CPF: 972.482.407-10
A17: OBJETO DA PARCERIA: SERVIÇO DE ACOLHIMENTO INSTITUCIONAL - CASA LAR PARA CRIANÇAS E ADOLESCENTES - Casa 1
A18: EXERCÍCIO: 2022 (SET a DEZ)
A19: ORIGEM DOS RECURSOS (1): FEDERAL
A20: DOCUMENTO | D20: DATA | E20: VIGÊNCIA | F20: VALOR - R$
A21: Termo de Colaboração nº 0215/2018 - Aditivo 4 e 5 | D21: 14/12/2021 - aditivo 4 24/05/2022 - aditivo 5 | E21: 01/01/2022a 31/12/2022 24/05/2022 a 31/12/2022 | F21: 60000
A25: DEMONSTRATIVO DOS RECURSOS DISPONÍVEIS NO QUADRIMESTRE
A26: DATA PREVISTA PARA O REPASSE (2) | B26: VALORES PREVISTOS (R$) | D26: DATA DO REPASSE | E26: NÚMERO DO DOCUMENTO DE CRÉDITO | F26: VALORES REPASSADOS (R$)
A27: 2022-08-01 | B27: 5000 | D27: 2022-09-21 | E27: 14273/2022 | F27: 2153.99
A28: 2022-09-01 | B28: 5000 | D28: 2022-10-21 | E28: 16060/2022 | F28: 2143.84
A29: 2022-10-01 | B29: 5000 | D29: 2022-11-28 | E29: 19104/2022 | F29: 2131.06
A30: 2022-11-01 | B30: 5000 | D30: 2022-12-28 | E30: 21767/2022 | F30: 2161.06
G38: 60000
G39: =F44 -> 0
A40: (A) SALDO DO QUADRIMESTRE ANTERIOR | F40: 19.16 | G40: =G38-G39 -> 60000 | H40: 3
A41: (B) REPASSES PÚBLICOS NO QUADRIMESTRE | F41: =SUM(F27:F39) -> 8589.95
A42: (C) RECEITAS COM APLICAÇÕES FINANCEIRAS DOS REPASSES PÚBLICOS | F42: 0 | G42: =G40*H40 -> 180000
A43: (D) OUTRAS RECEITAS DECORRENTES DA EXECUÇÃO DO AJUSTE (3) | F43: 0
A44: (E) TOTAL DE RECURSOS PÚBLICOS (A + B+ C + D)
A46: (F) RECURSOS PRÓPRIOS DA ENTIDADE BENEFICIÁRIA
A47: ((G) TOTAL DE RECURSOS DISPONÍVEIS NO QUADRIMESTRE (E + F) | F47: =F40+F41 -> 8609.11
A48: (1) Verba: Federal, Estadual ou Municipal, devendo ser elaborado um anexo para cada fonte de recurso.
A49: (2) Incluir valores previstos no exercício anterior e repassados neste exercício.
A50: (3) Receitas com estacionamento, aluguéis, entre outras
A58: O(s) signatário(s), na qualidade de representante(s) do Lar Batista de Crianças em Sumaré vem indicar, na forma abaixo detalhada, as despesas incorridas e pagas no exercício/2022 bem como as despesas a pagar no exercício seguinte.
B60: DEMONSTRATIVO DAS DESPESAS INCORRIDAS NO QUADRIMESTRE
B61: ORIGEM DOS RECURSOS (4): Federal
A62: CATEGORIA OU FINALIDADE DA DESPESA (8) | B62: DESPESAS CONTABILIZADAS NESTE EXERCÍCIO (R$) | C62: DESPESAS CONTABILIZADAS EM EXERCÍCIOS ANTERIORES E PAGAS NESTE EXERCÍCIO (R$) (H) | D62: DESPESAS CONTABILIZADAS NESTE EXERCÍCIO E PAGAS NESTE EXERCÍCIO (R$) (I) | E62: TOTAL DE DESPESAS PAGAS NESTE EXERCÍCIO (R$) (J= H + I) | F62: DESPESAS CONTABILIZADAS NESTE EXERCÍCIO A PAGAR EM EXERCÍCIOS SEGUINTES (R$) | G62: SET | H62: OUT | I62: NOV | J62: DEZ | K62: TOTAL
A63: 1 RH (Salários+Encargos+Provisão+Benefícios) | B63: =K63 -> 7662.87 | D63: =B63 -> 7662.87 | E63: =B63 -> 7662.87 | G63: 2134.42 | H63: 2122.27 | I63: 1268.39 | J63: 2137.79 | K63: =SUM(G63:J63) -> 7662.87 | N63: =SUM(G63:M63) -> 15325.74
A64: 2 Serviços de Terceiros – PF (Autônomo) | B64: =K64 -> 858.5 | D64: =B64 -> 858.5 | E64: =B64 -> 858.5 | G64: 0 | H64: 0 | I64: 858.5 | J64: 0 | K64: =SUM(G64:J64) -> 858.5
A65: 4 Alimentação | B65: =K65 -> 81.58 | D65: =B65 -> 81.58 | E65: =B65 -> 81.58 | G65: 0 | H65: 48.96 | I65: 0 | J65: 32.62 | K65: =SUM(G65:J65) -> 81.58 | N65: =SUM(J65:M65) -> 114.2
G66: 0 | H66: 0 | I66: 0 | J66: 0 | K66: =SUM(G66:J66) -> 0 | N66: =SUM(N63:N65) -> 15439.94
G67: =SUM(G63:G66) -> 2134.42 | H67: =SUM(H63:H66) -> 2171.23 | I67: =SUM(I63:I66) -> 2126.89 | J67: =SUM(J63:J66) -> 2170.41 | K67: =SUM(G67:J67) -> 8602.95
K68: =SUM(K63:K67) -> 17205.9
A79: TOTAL | B79: =SUM(B63:B78) -> 8602.95 | D79: =SUM(D63:D78) -> 8602.95 | E79: =SUM(E63:E78) -> 8602.95
A80: (4) Verba: Federal, Estadual, Municipal e Recursos Próprios, devendo ser elaborado um anexo para cada fonte de recurso.
A81: (5) Salários, encargos e benefícios.
A82: (6) Autônomos e pessoa jurídica.
A83: (7) Energia elétrica, água e esgoto, gás, telefone e internet.
A84: (8) No rol exemplificativo incluir também as aquisições e os compromissos assumidos que não são classificados contabilmente como DESPESAS, como, por exemplo, aquisição de bens permanentes.
A85: (9) Quando a diferença entre a Coluna DESPESAS CONTABILIZADAS NESTE EXERCÍCIO e a Coluna DESPESAS CONTABILIZADAS NESTE EXERCÍCIO E PAGAS NESTE EXERCÍCIO for decorrente de descontos obtidos ou pagamento de multa por atraso, o resultado não deve aparecer na coluna DESPESAS CONTABILIZADAS NESTE EXERCÍCIO A PAGAR EM EXERCÍCIOS SEGUINTES, uma vez que tais descontos ou multas são contabilizados em contas de receitas ou despesas. Assim sendo deverá se indicado como nota de rodapé os valores e as respectivas contas de receitas e despesas.
A86: (*) Apenas para entidades da área da Saúde.
A90: O(s) signatário(s), na qualidade de representante(s) do Lar Batista de Crianças em Sumaré vem indicar, na forma abaixo detalhada, as despesas incorridas e pagas no exercício/2022 bem como as despesas a pagar no exercício seguinte.
A97: DEMONSTRATIVO DO SALDO FINANCEIRO DO QUADRIMESTRE
A98: (G) TOTAL DE RECURSOS DISPONÍVEL NO QUADRIMESTRE | F98: =F47 -> 8609.11
A99: (J) DESPESAS PAGAS NO EXERCÍCIO (H+I) | F99: =C79+D79 -> 8602.95
A100: (K) RECURSO PÚBLICO NÃO APLICADO [E – (J – F)] | F100: 0
A101: (L) VALOR DEVOLVIDO AO ÓRGÃO PÚBLICO | F101: 0
A102: (M) VALOR AUTORIZADO PARA APLICAÇÃO NO FECHAMENTO DO EXERCÍCIO 2022 EM JANEIRO/2023(K) | F102: =F98-F99 -> 6.16
A104: Declaro(amos), na qualidade de responsável(is) pela entidade supra epigrafada, sob as penas da Lei, que a despesa relacionada comprova a exata aplicação dos recursos recebidos para os fins indicados, conforme programa de trabalho aprovado, proposto ao Órgão Público Parceiro.
A107: Local e data:
A110: =Conciliação!A36 -> Sumaré - SP, 11 de setembro de 2023
A114: Responsáveis pela Organização da Sociedade Civil: (nome, cargo e assinatura)
A119: Ailton Santana da Silva
A120: Coordenador

Sheet Planilha1
